fUSD/lending_fUSD_20250311
["ID","MTS","AMOUNT","RATE_DAILY","PERIOD"]
[355952758,1741729852960,-804.01,9.533e-05,2]
[355952759,1741729852970,-500.0,9.533e-05,2]
[355952760,1741729852979,-500.0,9.533e-05,2]
[355952761,1741729852988,-2736.12,9.533e-05,2]
[355952762,1741729852998,-500.0,9.533e-05,2]
[355952763,1741729853007,-847.3,9.533e-05,2]
[355952764,1741729853016,-500.0,9.533e-05,2]
[355952765,1741729853026,-284.20894785,9.533e-05,2]
[355952766,1741729853035,-500.0,9.533e-05,2]
[355952767,1741729853044,-1015.46,9.533e-05,2]
[355952768,1741729853057,-697.49,9.533e-05,2]
[355952769,1741729853066,-500.0,9.533e-05,2]
[355952770,1741729853074,-500.0,9.533e-05,2]
[355952771,1741729853083,-516.07,9.533e-05,2]
[355952772,1741729853092,-1110.45,9.533e-05,2]
[355952773,1741729853101,-699.16,9.533e-05,2]
[355952774,1741729853110,-1005.51,9.533e-05,2]
[355952775,1741729853119,-889.97,9.533e-05,2]
[355952776,1741729853129,-626.53,9.533e-05,2]
[355952777,1741729853138,-1130.59,9.533e-05,2]
[355952778,1741729853147,-696.53,9.533e-05,2]
[355952779,1741729853155,-500.0,9.533e-05,2]
[355952780,1741729853164,-521.13,9.533e-05,2]
[355952781,1741729853174,-500.0,9.533e-05,2]
[355952782,1741729853182,-657.05,9.533e-05,2]
[355952783,1741729853192,-766.31,9.533e-05,2]
[355952784,1741729853201,-838.06,9.533e-05,2]
[355952785,1741729853211,-500.0,9.533e-05,2]
[355952786,1741729853220,-728.59,9.533e-05,2]
[355952787,1741729853229,-500.0,9.533e-05,2]
[355952788,1741729853240,-1061.67,9.533e-05,2]
[355952789,1741729853251,-500.0,9.533e-05,2]
[355952790,1741729853259,-500.0,9.533e-05,2]
[355952791,1741729853268,-500.0,9.533e-05,2]
[355952792,1741729853277,-500.0,9.533e-05,2]
[355952793,1741729853289,-913.09,9.533e-05,2]
[355952794,1741729853298,-735.0,9.533e-05,2]
[355952795,1741729853307,-582.50577951,9.533e-05,2]
[355952796,1741729853315,-500.0,9.533e-05,2]
[355952797,1741729853324,-982.41,9.533e-05,2]
[355952798,1741729853333,-570.95587477,9.533e-05,2]
[355952799,1741729853342,-500.0,9.533e-05,2]
[355952800,1741729853351,-500.0,9.533e-05,2]
[355952801,1741729853360,-1198.43,9.533e-05,2]
[355952802,1741729853369,-633.39,9.533e-05,2]
[355952803,1741729853377,-500.0,9.533e-05,2]
[355952804,1741729853386,-500.0,9.533e-05,2]
[355952805,1741729853395,-500.0,9.533e-05,2]
[355952806,1741729853404,-500.0,9.533e-05,2]
[355952807,1741729853413,-500.0,9.533e-05,2]
[355952808,1741729853422,-500.0,9.533e-05,2]
[355952809,1741729853431,-500.0,9.533e-05,2]
[355952810,1741729853440,-700.02,9.533e-05,2]
[355952811,1741729853449,-500.0,9.533e-05,2]
[355952812,1741729853458,-500.0,9.533e-05,2]
[355952813,1741729853467,-500.0,9.533e-05,2]
[355952814,1741729853476,-612.2,9.533e-05,2]
[355952815,1741729853484,-500.0,9.533e-05,2]
[355952816,1741729853493,-500.0,9.533e-05,2]
[355952817,1741729853502,-500.0,9.533e-05,2]
[355952818,1741729853511,-500.0,9.533e-05,2]
[355952819,1741729853520,-500.0,9.533e-05,2]
[355952820,1741729853529,-500.0,9.533e-05,2]
[355952821,1741729853538,-693.97,9.533e-05,2]
[355952822,1741729853556,-500.0,9.533e-05,2]
[355952823,1741729853565,-781.32,9.533e-05,2]
[355952824,1741729853574,-500.0,9.533e-05,2]
[355952825,1741729853582,-500.0,9.533e-05,2]
[355952826,1741729853591,-837.56,9.533e-05,2]
[355952827,1741729853600,-500.0,9.533e-05,2]
[355952828,1741729853610,-500.0,9.533e-05,2]
[355952829,1741729853619,-500.0,9.533e-05,2]
[355952830,1741729853628,-979.74,9.533e-05,2]
[355952831,1741729853638,-500.0,9.533e-05,2]
[355952832,1741729853647,-500.0,9.533e-05,2]
[355952833,1741729853656,-500.0,9.533e-05,2]
[355952834,1741729853665,-752.91,9.533e-05,2]
[355952835,1741729853674,-658.14,9.533e-05,2]
[355952836,1741729853683,-588.0,9.533e-05,2]
[355952837,1741729853692,-1909.06,9.533e-05,2]
[355952838,1741729853701,-767.68,9.533e-05,2]
[355952839,1741729853711,-500.0,9.533e-05,2]
[355952840,1741729853720,-500.0,9.533e-05,2]
[355952841,1741729853729,-500.0,9.533e-05,2]
[355952842,1741729853739,-1059.24,9.533e-05,2]
[355952843,1741729853748,-500.0,9.533e-05,2]
[355952844,1741729853757,-1291.55,9.533e-05,2]
[355952845,1741729853766,-500.0,9.533e-05,2]
[355952846,1741729853775,-500.0,9.533e-05,2]
[355952847,1741729853785,-500.0,9.533e-05,2]
[355952848,1741729853794,-500.0,9.533e-05,2]
[355952849,1741729853803,-1004.07,9.533e-05,2]
[355952850,1741729853812,-670.51,9.533e-05,2]
[355952851,1741729853821,-500.0,9.533e-05,2]
[355952852,1741729853830,-500.0,9.533e-05,2]
[355952853,1741729853839,-967.42,9.533e-05,2]
[355952854,1741729853848,-1018.28,9.533e-05,2]
[355952855,1741729853857,-508.05,9.533e-05,2]
[355952856,1741729853866,-557.09210111,9.533e-05,2]
[355952857,1741729853875,-1117.01,9.533e-05,2]
[355952858,1741729853884,-815.85,9.533e-05,2]
[355952859,1741729853893,-615.28,9.533e-05,2]
[355952860,1741729853902,-500.0,9.533e-05,2]
[355952861,1741729853911,-577.2,9.533e-05,2]
[355952862,1741729853920,-500.0,9.533e-05,2]
[355952863,1741729853930,-500.0,9.533e-05,2]
[355952864,1741729853939,-500.0,9.533e-05,2]
[355952865,1741729853948,-500.0,9.533e-05,2]
[355952866,1741729853957,-500.0,9.533e-05,2]
[355952867,1741729853966,-1070.76,9.533e-05,2]
[355952868,1741729853975,-500.0,9.533e-05,2]
[355952869,1741729853984,-1160.28,9.533e-05,2]
[355952870,1741729853993,-500.0,9.533e-05,2]
[355952871,1741729854002,-500.0,9.533e-05,2]
[355952872,1741729854012,-500.0,9.533e-05,2]
[355952873,1741729854021,-500.0,9.533e-05,2]
[355952874,1741729854030,-500.0,9.533e-05,2]
[355952875,1741729854040,-500.0,9.533e-05,2]
[355952876,1741729854049,-500.0,9.533e-05,7]
[355952877,1741729854058,-500.0,9.533e-05,2]
[355952878,1741729854067,-1155.67,9.533e-05,2]
[355952879,1741729854076,-500.0,9.533e-05,2]
[355952880,1741729854085,-690.53,9.533e-05,2]
[355952881,1741729854094,-777.63,9.533e-05,2]
[355952882,1741729854103,-851.29,9.533e-05,2]
[355952883,1741729854112,-830.5,9.533e-05,2]
[355952884,1741729854120,-500.0,9.533e-05,2]
[355952885,1741729854129,-500.0,9.533e-05,2]
[355952886,1741729854138,-163.793,9.533e-05,2]
[355952887,1741729854147,-163.793,9.533e-05,2]
[355952888,1741729854156,-163.793,9.533e-05,2]
[355952889,1741729854166,-500.0,9.533e-05,2]
[355952890,1741729854175,-500.0,9.533e-05,2]
[355952891,1741729854184,-573.57,9.533e-05,2]
[355952892,1741729854194,-249.82959037,9.533e-05,2]
[355952893,1741729854202,-500.0,9.533e-05,2]
[355952894,1741729854212,-500.0,9.533e-05,2]
[355952895,1741729854220,-500.0,9.533e-05,2]
[355952896,1741729854229,-500.0,9.533e-05,2]
[355952897,1741729854239,-1026.36,9.533e-05,2]
[355952898,1741729854252,-500.0,9.533e-05,2]
[355952899,1741729854261,-500.0,9.533e-05,2]
[355952900,1741729854270,-500.0,9.533e-05,2]
[355952901,1741729854279,-500.0,9.533e-05,2]
[355952902,1741729854289,-500.0,9.533e-05,2]
[355952903,1741729854298,-500.0,9.533e-05,2]
[355952904,1741729854307,-904.26,9.533e-05,2]
[355952905,1741729854316,-780.97,9.533e-05,2]
[355952906,1741729854326,-500.0,9.534e-05,2]
[355952907,1741729854335,-500.0,9.534e-05,2]
[355952908,1741729854344,-500.0,9.534e-05,2]
[355952909,1741729854353,-500.0,9.534e-05,2]
[355952910,1741729854362,-500.0,9.534e-05,2]
[355952911,1741729854371,-1095.76,9.534e-05,2]
[355952912,1741729854380,-500.0,9.534e-05,2]
[355952913,1741729854389,-920.06,9.534e-05,2]
[355952914,1741729854398,-860.88,9.534e-05,2]
[355952915,1741729854407,-500.0,9.534e-05,2]
[355952916,1741729854416,-568.89,9.534e-05,2]
[355952917,1741729854426,-223.36011126,9.534e-05,2]
[355952918,1741729854435,-500.0,9.534e-05,2]
[355952919,1741729854445,-500.0,9.534e-05,2]
[355952920,1741729854454,-1324.63,9.534e-05,2]
[355952921,1741729854464,-500.0,9.534e-05,2]
[355952922,1741729854473,-1217.97,9.534e-05,2]
[355952923,1741729854483,-1554.82,9.534e-05,2]
[355952924,1741729854492,-1061.18,9.534e-05,2]
[355952925,1741729854500,-500.0,9.534e-05,2]
[355952926,1741729854509,-976.39,9.534e-05,2]
[355952927,1741729854520,-500.0,9.534e-05,2]
[355952928,1741729854529,-940.97,9.534e-05,2]
[355952929,1741729854538,-943.13,9.534e-05,2]
[355952930,1741729854547,-1126.87,9.534e-05,2]
[355952931,1741729854556,-500.0,9.534e-05,2]
[355952932,1741729854565,-766.98,9.534e-05,2]
[355952933,1741729854574,-768.25,9.534e-05,2]
[355952934,1741729854583,-500.0,9.534e-05,2]
[355952935,1741729854592,-987.65,9.534e-05,2]
[355952936,1741729854600,-551.84,9.534e-05,2]
[355952937,1741729854610,-500.0,9.534e-05,2]
[355952938,1741729854619,-987.6,9.534e-05,2]
[355952939,1741729854628,-500.0,9.534e-05,2]
[355952940,1741729854638,-500.0,9.534e-05,2]
[355952941,1741729854647,-609.32,9.534e-05,2]
[355952942,1741729854656,-1090.42,9.534e-05,2]
[355952943,1741729854665,-500.0,9.534e-05,2]
[355952944,1741729854674,-909.68,9.534e-05,2]
[355952945,1741729854683,-880.65,9.534e-05,2]
[355952946,1741729854692,-543.45,9.534e-05,2]
[355952947,1741729854701,-599.85,9.534e-05,2]
[355952948,1741729854710,-500.0,9.534e-05,2]
[355952949,1741729854719,-500.0,9.534e-05,2]
[355952950,1741729854729,-568.09,9.534e-05,2]
[355952951,1741729854738,-950.89,9.534e-05,2]
[355952952,1741729854748,-895.02,9.534e-05,2]
[355952953,1741729854757,-500.0,9.534e-05,2]
[355952954,1741729854767,-601.85334387,9.534e-05,2]
[355952955,1741729854776,-994.02,9.534e-05,2]
[355952956,1741729854787,-954.28,9.534e-05,2]
[355952957,1741729854796,-753.8,9.534e-05,2]
[355952958,1741729854805,-1235.5,9.534e-05,2]
[355952959,1741729854814,-1159.24,9.534e-05,2]
[355952960,1741729854823,-500.0,9.534e-05,2]
[355952961,1741729854833,-680.56,9.534e-05,2]
[355952962,1741729854842,-500.0,9.534e-05,2]
[355952963,1741729854852,-691.15,9.534e-05,2]
[355952964,1741729854861,-550.69,9.534e-05,2]
[355952965,1741729854871,-833.86,9.534e-05,2]
[355952966,1741729854879,-701.56,9.534e-05,2]
[355952967,1741729854888,-1713.52,9.534e-05,2]
[355952968,1741729854897,-500.0,9.534e-05,2]
[355952969,1741729854907,-2142.41,9.534e-05,2]
[355952970,1741729854916,-285.03,9.534e-05,2]
[355952971,1741729854926,-1035.99,9.534e-05,2]
[355952972,1741729854935,-1430.72,9.534e-05,2]
[355952973,1741729854945,-1401.14,9.534e-05,2]
[355952974,1741729854954,-500.0,9.534e-05,2]
[355952975,1741729854967,-1275.06,9.534e-05,2]
[355952976,1741729854977,-654.06,9.536e-05,2]
[355952977,1741729854987,-635.02,9.536e-05,2]
[355952978,1741729854996,-1090.58,9.536e-05,2]
[355952979,1741729855006,-500.0,9.536e-05,2]
[355952980,1741729855016,-868.41,9.536e-05,2]
[355952981,1741729855026,-500.0,9.536e-05,2]
[355952982,1741729855036,-500.0,9.536e-05,2]
[355952983,1741729855046,-644.83,9.536e-05,2]
[355952984,1741729855055,-1020.95,9.536e-05,2]
[355952985,1741729855065,-500.0,9.536e-05,2]
[355952986,1741729855075,-683.32,9.536e-05,2]
[355952987,1741729855084,-500.0,9.536e-05,2]
[355952988,1741729855094,-500.0,9.536e-05,2]
[355952989,1741729855104,-500.0,9.536e-05,2]
[355952990,1741729855114,-500.0,9.536e-05,2]
[355952991,1741729855124,-617.64,9.536e-05,2]
[355952992,1741729855134,-500.0,9.536e-05,2]
[355952993,1741729855143,-500.0,9.536e-05,2]
[355952994,1741729855153,-673.86,9.536e-05,2]
[355952995,1741729855162,-500.0,9.536e-05,2]
[355952996,1741729855174,-1030.89,9.536e-05,2]
[355952997,1741729855184,-530.71,9.536e-05,2]
[355952998,1741729855193,-500.0,9.536e-05,2]
[355952999,1741729855203,-500.0,9.536e-05,2]
[355953000,1741729855214,-500.0,9.536e-05,2]
[355953001,1741729855224,-452.39019249,9.536e-05,2]
[355953002,1741729855234,-500.0,9.536e-05,2]
[355953003,1741729855248,-500.0,9.536e-05,2]
[355953004,1741729855257,-500.0,9.536e-05,2]
[355953005,1741729855267,-500.69,9.536e-05,2]
[355953006,1741729855276,-536.77,9.536e-05,2]
[355953007,1741729855286,-500.0,9.536e-05,2]
[355953008,1741729855296,-500.0,9.536e-05,2]
[355953009,1741729855306,-500.0,9.536e-05,2]
[355953010,1741729855316,-500.0,9.536e-05,2]
[355953011,1741729855327,-500.0,9.536e-05,2]
[355953012,1741729855336,-1078.05,9.536e-05,2]
[355953013,1741729855346,-676.53,9.536e-05,2]
[355953014,1741729855356,-500.0,9.536e-05,2]
[355953015,1741729855365,-500.0,9.536e-05,2]
[355953016,1741729855374,-500.0,9.536e-05,2]
[355953017,1741729855384,-500.0,9.536e-05,2]
[355953018,1741729855393,-1289.61,9.536e-05,2]
[355953019,1741729855403,-505.86,9.536e-05,2]
[355953020,1741729855413,-500.0,9.536e-05,2]
[355953021,1741729855422,-500.0,9.536e-05,2]
[355953022,1741729855432,-500.0,9.536e-05,2]
[355953023,1741729855442,-500.0,9.536e-05,2]
[355953024,1741729855452,-784.21,9.536e-05,2]
[355953025,1741729855462,-500.0,9.536e-05,2]
[355953026,1741729855471,-817.96,9.536e-05,2]
[355953027,1741729855480,-755.7,9.536e-05,2]
[355953028,1741729855490,-500.0,9.536e-05,2]
[355953029,1741729855499,-500.0,9.536e-05,2]
[355953030,1741729855509,-992.25,9.536e-05,2]
[355953031,1741729855519,-500.0,9.536e-05,2]
[355953032,1741729855528,-500.0,9.536e-05,2]
[355953033,1741729855537,-500.0,9.536e-05,2]
[355953034,1741729855548,-698.57,9.536e-05,2]
[355953035,1741729855561,-1086.5,9.536e-05,2]
[355953036,1741729855570,-500.0,9.536e-05,2]
[355953037,1741729855579,-500.0,9.536e-05,2]
[355953038,1741729855589,-525.59,9.536e-05,2]
[355953039,1741729855598,-500.0,9.536e-05,2]
[355953040,1741729855608,-500.0,9.536e-05,2]
[355953041,1741729855617,-500.0,9.536e-05,2]
[355953042,1741729855627,-500.0,9.536e-05,2]
[355953043,1741729855637,-500.0,9.536e-05,2]
[355953044,1741729855646,-520.99,9.536e-05,2]
[355953045,1741729855656,-150.0,9.562e-05,7]
[355953046,1741729855666,-1105.69,9.589e-05,2]
[355953047,1741729855675,-1105.69,9.589e-05,2]
[355953048,1741729855685,-406.39,9.708e-05,2]
[355953049,1741729855695,-1000.0,9.708e-05,2]
[355953050,1741729855704,-1916.421,9.709e-05,2]
[355953051,1741729855714,-619.52,9.777e-05,2]
[355953052,1741729855723,-866.01,9.806e-05,2]
[355953053,1741729855733,-1102.95,9.806e-05,2]
[355953054,1741729855742,-609.27,9.806e-05,2]
[355953055,1741729855752,-500.0,9.806e-05,2]
[355953056,1741729855762,-500.0,9.806e-05,2]
[355953057,1741729855771,-942.35,9.806e-05,2]
[355953058,1741729855781,-1078.36,9.806e-05,2]
[355953059,1741729855790,-964.91,9.806e-05,2]
[355953060,1741729855800,-363.2286445,9.806e-05,2]
[355953061,1741729855809,-500.0,9.806e-05,2]
[355953062,1741729855819,-1016.93,9.806e-05,2]
[355953063,1741729855829,-576.33,9.806e-05,2]
[355953064,1741729855838,-655.01,9.806e-05,2]
[355953065,1741729855847,-500.0,9.806e-05,2]
[355953066,1741729855857,-538.33,9.806e-05,2]
[355953067,1741729855866,-612.45,9.806e-05,2]
[355953068,1741729855875,-500.0,9.806e-05,2]
[355953069,1741729855885,-605.87,9.806e-05,2]
[355953070,1741729855896,-500.0,9.806e-05,2]
[355953071,1741729855905,-500.0,9.806e-05,2]
[355953072,1741729855914,-540.49,9.806e-05,2]
[355953073,1741729855923,-500.0,9.806e-05,2]
[355953074,1741729855933,-1042.95,9.806e-05,2]
[355953075,1741729855942,-529.95,9.806e-05,2]
[355953076,1741729855951,-500.0,9.806e-05,2]
[355953077,1741729855961,-621.89,9.806e-05,2]
[355953078,1741729855970,-500.0,9.806e-05,2]
[355953079,1741729856175,-646.97,9.806e-05,2]
[355953080,1741729856194,-503.24,9.806e-05,2]
[355953081,1741729856203,-500.0,9.806e-05,2]
[355953082,1741729856213,-500.0,9.806e-05,2]
[355953083,1741729856222,-500.0,9.806e-05,2]
[355953084,1741729856231,-1102.66,9.806e-05,2]
[355953085,1741729856242,-652.99,9.806e-05,2]
[355953086,1741729856253,-1117.99,9.806e-05,2]
[355953087,1741729856263,-623.33,9.806e-05,2]
[355953088,1741729856272,-500.0,9.806e-05,2]
[355953089,1741729856282,-500.0,9.806e-05,2]
[355953090,1741729856291,-828.18,9.806e-05,2]
[355953091,1741729856300,-500.0,9.806e-05,2]
[355953092,1741729856310,-500.0,9.806e-05,2]
[355953093,1741729856320,-500.0,9.806e-05,2]
[355953094,1741729856329,-500.0,9.806e-05,2]
[355953095,1741729856339,-500.0,9.806e-05,2]
[355953096,1741729856348,-500.0,9.806e-05,2]
[355953097,1741729856357,-500.0,9.806e-05,2]
[355953098,1741729856366,-500.0,9.806e-05,2]
[355953099,1741729856375,-715.14,9.806e-05,2]
[355953100,1741729856387,-552.81,9.806e-05,2]
[355953101,1741729856400,-789.98,9.806e-05,2]
[355953102,1741729856411,-500.0,9.806e-05,2]
[355953103,1741729856424,-500.0,9.806e-05,2]
[355953104,1741729856436,-500.0,9.806e-05,2]
[355953105,1741729856446,-1068.56,9.806e-05,2]
[355953106,1741729856455,-573.42480629,9.806e-05,2]
[355953107,1741729856464,-778.85,9.806e-05,2]
[355953108,1741729856473,-500.0,9.806e-05,2]
[355953109,1741729856482,-1625.59,9.806e-05,2]
[355953110,1741729856492,-500.0,9.806e-05,2]
[355953111,1741729856501,-1129.48,9.806e-05,2]
[355953112,1741729856510,-500.0,9.806e-05,2]
[355953113,1741729856520,-427.36741241,9.806e-05,2]
[355953114,1741729856935,-487.17,9.259e-05,2]
[355953115,1741729857303,-12.83,9.259e-05,2]
[355953116,1741729857312,-1201.045,9.395e-05,2]
[355953117,1741729857322,-500.0,9.533e-05,2]
[355953118,1741729857332,-652.64258759,9.806e-05,2]
[355953119,1741729857340,-500.0,9.806e-05,2]
[355953120,1741729857350,-500.0,9.806e-05,2]
[355953121,1741729857359,-113.36440465,9.806e-05,2]
[355953122,1741729857371,-601.77559535,9.806e-05,2]
[355953123,1741729857380,-936.8,9.806e-05,2]
[355953124,1741729857390,-415.69479202,9.806e-05,2]
[355953125,1741729857399,-1023.44,9.806e-05,2]
[355953126,1741729857409,-886.39,9.806e-05,2]
[355953127,1741729857419,-500.0,9.806e-05,2]
[355953128,1741729857429,-500.0,9.806e-05,2]
[355953129,1741729857438,-500.0,9.806e-05,2]
[355953130,1741729857448,-500.0,9.806e-05,2]
[355953131,1741729857457,-500.0,9.806e-05,2]
[355953132,1741729857466,-500.0,9.806e-05,2]
[355953133,1741729857476,-500.0,9.806e-05,2]
[355953134,1741729857486,-500.0,9.806e-05,2]
[355953135,1741729857495,-500.0,9.806e-05,2]
[355953136,1741729857505,-500.0,9.806e-05,2]
[355953137,1741729857515,-500.0,9.806e-05,2]
[355953138,1741729857525,-596.79,9.806e-05,2]
[355953139,1741729857534,-500.0,9.806e-05,2]
[355953140,1741729857544,-500.0,9.806e-05,2]
[355953141,1741729857554,-500.0,9.806e-05,2]
[355953142,1741729857563,-545.47,9.806e-05,2]
[355953143,1741729857573,-500.0,9.806e-05,2]
[355953144,1741729857582,-2335.75,9.806e-05,2]
[355953145,1741729857591,-500.0,9.806e-05,2]
[355953146,1741729857601,-500.0,9.806e-05,2]
[355953147,1741729857610,-1345.08,9.806e-05,2]
[355953148,1741729857620,-1026.1,9.806e-05,2]
[355953149,1741729857629,-500.0,9.806e-05,2]
[355953150,1741729857640,-776.56,9.806e-05,2]
[355953151,1741729857649,-219.48,9.806e-05,2]
[355953152,1741729857659,-500.0,9.806e-05,2]
[355953153,1741729857668,-500.0,9.806e-05,2]
[355953154,1741729857677,-500.0,9.806e-05,2]
[355953155,1741729857686,-1036.42,9.806e-05,2]
[355953156,1741729857696,-1105.69,9.806e-05,2]
[355953157,1741729857705,-500.0,9.806e-05,2]
[355953158,1741729857714,-500.0,9.806e-05,2]
[355953159,1741729857724,-500.0,9.806e-05,2]
[355953160,1741729857733,-769.0,9.806e-05,2]
[355953161,1741729857743,-1147.61,9.806e-05,2]
[355953162,1741729857752,-537.68,9.806e-05,2]
[355953163,1741729857761,-1070.49,9.806e-05,2]
[355953164,1741729857772,-1484.39,9.806e-05,2]
[355953165,1741729857782,-451.66473605,9.806e-05,2]
[355953166,1741729857791,-573.2,9.806e-05,2]
[355953167,1741729857801,-500.0,9.806e-05,2]
[355953168,1741729857812,-500.0,9.806e-05,2]
[355953169,1741729857821,-500.0,9.806e-05,2]
[355953170,1741729857831,-500.0,9.806e-05,2]
[355953171,1741729857840,-695.86,9.806e-05,2]
[355953172,1741729857850,-565.64,9.806e-05,2]
[355953173,1741729857859,-665.11,9.806e-05,2]
[355953174,1741729857869,-500.0,9.806e-05,2]
[355953175,1741729857878,-500.0,9.806e-05,2]
[355953176,1741729857888,-572.91,9.806e-05,2]
[355953177,1741729857897,-575.45,9.806e-05,2]
[355953178,1741729857906,-846.4,9.806e-05,2]
[355953179,1741729857915,-511.17,9.806e-05,2]
[355953180,1741729857925,-500.0,9.806e-05,2]
[355953181,1741729857934,-500.0,9.806e-05,2]
[355953182,1741729857943,-500.0,9.806e-05,2]
[355953183,1741729857952,-287.58106973,9.806e-05,2]
[355953184,1741729857961,-500.0,9.806e-05,2]
[355953185,1741729857970,-847.34,9.806e-05,2]
[355953186,1741729857979,-500.0,9.806e-05,2]
[355953187,1741729857988,-500.0,9.806e-05,2]
[355953188,1741729857998,-355.56507575,9.806e-05,2]
[355953189,1741729858007,-500.0,9.806e-05,2]
[355953190,1741729858016,-656.53,9.806e-05,2]
[355953191,1741729858026,-500.0,9.806e-05,2]
[355953192,1741729858035,-500.0,9.806e-05,2]
[355953193,1741729858044,-970.55,9.806e-05,2]
[355953194,1741729858054,-500.0,9.806e-05,2]
[355953195,1741729858064,-1829.21,9.806e-05,2]
[355953196,1741729858073,-257.67108638,9.806e-05,2]
[355953197,1741729858083,-592.45,9.806e-05,2]
[355953198,1741729858092,-500.0,9.806e-05,2]
[355953199,1741729858101,-906.04,9.806e-05,2]
[355953200,1741729858111,-847.1,9.806e-05,2]
[355953201,1741729858120,-500.0,9.806e-05,2]
[355953202,1741729858129,-639.2,9.806e-05,2]
[355953203,1741729858138,-500.0,9.806e-05,2]
[355953204,1741729858147,-560.27,9.806e-05,2]
[355953205,1741729858156,-566.12,9.806e-05,2]
[355953206,1741729858166,-890.26,9.806e-05,2]
[355953207,1741729858175,-511.12,9.806e-05,2]
[355953208,1741729858184,-492.07346886,9.806e-05,2]
[355953209,1741729858193,-1045.5,9.806e-05,2]
[355953210,1741729858203,-500.0,9.806e-05,2]
[355953211,1741729858212,-500.0,9.806e-05,2]
[355953212,1741729858221,-500.0,9.807e-05,2]
[355953213,1741729858231,-500.0,9.807e-05,2]
[355953214,1741729858241,-500.0,9.807e-05,2]
[355953215,1741729858254,-515.61,9.807e-05,2]
[355953216,1741729858263,-500.0,9.807e-05,2]
[355953217,1741729858272,-500.0,9.807e-05,2]
[355953218,1741729858282,-500.0,9.807e-05,2]
[355953219,1741729858292,-500.0,9.807e-05,2]
[355953220,1741729858301,-500.0,9.807e-05,2]
[355953221,1741729858310,-500.0,9.807e-05,2]
[355953222,1741729858322,-500.0,9.807e-05,2]
[355953223,1741729858332,-745.11,9.807e-05,2]
[355953224,1741729858343,-500.0,9.807e-05,2]
[355953225,1741729858354,-797.08,9.807e-05,2]
[355953226,1741729858363,-563.26,9.807e-05,2]
[355953227,1741729858373,-638.97,9.807e-05,2]
[355953228,1741729858383,-500.0,9.807e-05,2]
[355953229,1741729858392,-889.44,9.807e-05,2]
[355953230,1741729858403,-500.0,9.807e-05,2]
[355953231,1741729858412,-645.75634251,9.807e-05,2]
[355953232,1741729858485,-500.0,9.807e-05,2]
[355953233,1741729858495,-500.0,9.807e-05,2]
[355953234,1741729858503,-500.0,9.807e-05,2]
[355953235,1741729858512,-500.0,9.807e-05,2]
[355953236,1741729858522,-500.0,9.807e-05,2]
[355953237,1741729858531,-1007.62,9.807e-05,2]
[355953238,1741729858540,-500.0,9.807e-05,2]
[355953239,1741729858549,-911.32,9.807e-05,2]
[355953240,1741729858557,-500.0,9.807e-05,2]
[355953241,1741729858566,-500.0,9.807e-05,2]
[355953242,1741729858575,-500.0,9.807e-05,2]
[355953243,1741729858585,-500.0,9.807e-05,2]
[355953244,1741729858594,-995.82,9.807e-05,2]
[355953245,1741729858603,-500.0,9.807e-05,2]
[355953246,1741729858612,-500.0,9.807e-05,2]
[355953247,1741729858621,-500.0,9.807e-05,2]
[355953248,1741729858630,-500.0,9.807e-05,2]
[355953249,1741729858639,-500.0,9.807e-05,2]
[355953250,1741729858648,-500.0,9.807e-05,2]
[355953251,1741729858657,-754.63,9.807e-05,2]
[355953252,1741729858666,-500.0,9.807e-05,2]
[355953253,1741729858675,-500.0,9.807e-05,2]
[355953254,1741729858684,-500.0,9.807e-05,2]
[355953255,1741729858693,-500.0,9.807e-05,2]
[355953256,1741729858702,-855.43,9.807e-05,2]
[355953257,1741729858712,-812.48,9.807e-05,2]